bitfinex/quotes_SOLUSD_20250917
["timestamp","ask_amount","ask_price","bid_price","bid_amount"]
[1758151845938,0.06,244.96,244.95,2.40900563]
[1758151846133,0.06,244.96,244.95,1.68900563]
[1758151846560,0.06,244.96,244.94,32.54]
[1758151846757,0.06,244.96,244.95,1.68900563]
[1758151847060,0.06,244.96,244.95,2.40900563]
[1758151847440,0.06,244.96,244.95,6.49147143]
[1758151851661,0.06,244.96,244.95,38.23147143]
[1758151852166,0.06,244.96,244.95,38.95147143]
[1758151853958,0.06,244.96,244.95,39.35971801]
[1758151854160,0.06,244.96,244.95,39.38971801]
[1758151854850,0.06,244.96,244.95,39.67404115]
[1758151855462,0.06,244.96,244.95,6.52147143]
[1758151855654,0.06,244.96,244.95,38.98147143]
[1758151856467,0.06,244.96,244.95,37.2924658]
[1758151856773,0.06,244.96,244.95,38.98147143]
[1758151856959,0.06,244.96,244.95,26.03]
[1758151857152,0.06,244.96,244.95,58.45]
[1758151857969,0.06,244.96,244.95,64.22147143]
[1758151858572,0.06,244.96,244.95,64.92147143]
[1758151859084,0.06,244.96,244.95,65.32971801]
[1758151859758,0.06,244.96,244.95,61.24725221]
[1758151859961,0.06,244.96,244.95,0.73]
[1758151860264,0.06,244.96,244.95,26.03]
[1758151860469,0.06,244.96,244.95,60.11900563]
[1758151861069,0.06,244.96,244.95,0.03]
[1758151861264,0.06,244.96,244.95,32.41]
[1758151863262,0.06,244.96,244.95,36.4924658]
[1758151863572,0.06,244.96,244.95,37.85503552]
[1758151863778,0.06,244.96,244.95,63.85503552]
[1758151868265,0.06,244.96,244.95,4.52071238]
[1758151868477,0.06,244.96,244.95,0.03]
[1758151868677,14.00559401,244.96,244.95,32.35]
[1758151868870,13.65559401,244.96,244.95,32.35]
[1758151870286,0.06,244.96,244.95,37.1024658]
[1758151870477,0.06,244.96,244.95,37.51071238]
[1758151870676,0.06,244.96,244.95,36.4324658]
[1758151870988,0.06,244.96,244.95,37.1024658]
[1758151871388,0.06,244.96,244.95,38.79147143]
[1758151871574,0.06,244.96,244.95,37.1024658]
[1758151871772,0.06,244.96,244.95,38.79147143]
[1758151871972,0.06,244.96,244.95,38.10147143]
[1758151872394,0.06,244.96,244.95,38.77147143]
[1758151873695,0.06,244.96,244.95,39.17971801]
[1758151874082,0.06,244.96,244.95,38.77147143]
[1758151875590,0.06,244.96,244.95,39.17971801]
[1758151877691,0.06,244.96,244.95,38.10147143]
[1758151878702,0.06,244.96,244.95,5.80147143]
[1758151878878,0.06,244.96,244.95,38.10147143]
[1758151879701,0.06,244.96,244.95,0.03]
[1758151879902,0.06,244.96,244.95,34.01900563]
[1758151880100,0.06,244.96,244.95,38.10147143]
[1758151880516,0.06,244.96,244.95,37.0824658]
[1758151880679,0.06,244.96,244.95,38.77147143]
[1758151880882,0.06,244.96,244.95,39.05579457]
[1758151881378,0.06,244.96,244.95,39.17971801]
[1758151881573,0.06,244.98,244.96,0.28432314]
[1758151881779,0.06,244.99,244.97,34.65900563]
[1758151882080,0.06,244.99,244.98,33.98900563]
[1758151882280,0.06,244.99,244.98,34.65900563]
[1758151882699,0.06,244.99,244.98,2.35900563]
[1758151882999,0.06,244.99,244.98,38.7409715]
[1758151883385,0.06,244.99,244.98,4.75196587]
[1758151883597,0.06,244.99,244.98,38.0709715]
[1758151884181,0.06,244.99,244.98,38.7409715]
[1758151885002,0.2,245.08,245.0,26.0]
[1758151885187,0.2,245.08,245.0,59.98900563]
[1758151885389,0.2,245.08,245.0,60.65900563]
[1758151886185,0.2,245.08,245.0,60.94332877]
[1758151886406,0.2,245.08,245.0,61.35149203]
[1758151886603,0.2,245.08,245.0,29.05149203]
[1758151886812,0.2,245.08,245.0,61.35149203]
[1758151887199,0.2,245.08,245.0,65.43312468]
[1758151887722,0.2,245.08,245.0,144.33312468]
[1758151887899,0.2,245.08,245.0,150.68098394]
[1758151888094,0.2,245.08,245.0,143.92496142]
[1758151888318,13.59559401,245.07,245.0,143.64063828]
[1758151888622,13.59559401,245.07,245.0,111.34063828]
[1758151888834,13.59559401,245.07,245.0,143.64063828]
[1758151889313,0.2,245.08,245.0,143.64063828]
[1758151889518,0.06,245.02,245.01,0.28432314]
[1758151889705,0.06,245.02,245.01,3.05147537]
[1758151891430,0.06,245.02,245.01,92.78896395]
[1758151891608,0.06,245.02,245.01,85.56920897]
[1758151891925,0.06,245.02,245.01,87.2582146]
[1758151892317,0.06,245.02,245.01,85.56920897]
[1758151892521,0.06,245.02,245.01,86.97389146]
[1758151892706,0.06,245.02,245.01,119.27389146]
[1758151892906,0.41,245.02,244.99,4.08172634]
[1758151893117,0.41,245.02,245.0,32.3]
[1758151893315,0.41,245.02,244.98,1.68900563]
[1758151893526,13.94559401,245.01,244.95,0.03]
[1758151893730,13.59559401,244.99,244.95,0.03]
[1758151893908,1.68900563,244.98,244.95,0.03]
[1758151894234,13.59559401,244.97,244.96,32.3]
[1758151894416,13.94559401,244.97,244.96,32.3]
[1758151894810,0.35,244.97,244.96,32.3]
[1758151895723,13.59559401,244.98,244.96,32.3]
[1758151895925,13.59559401,244.99,244.96,36.38227581]
[1758151896114,0.06,245.02,244.96,38.07128144]
[1758151896115,13.59559401,245.01,244.96,38.07128144]
[1758151896707,0.35,245.0,244.97,32.3]
[1758151896905,2.03900563,245.0,244.97,32.3]
[1758151897105,13.94559401,244.99,244.98,32.3]
[1758151898523,19.71643335,244.99,244.95,0.03]
[1758151898832,1.68900563,244.96,244.95,0.03]
[1758151899041,15.28459964,244.96,244.95,0.03]
[1758151899207,15.63459964,244.96,244.95,0.03]
[1758151899642,13.59559401,244.96,244.95,0.03]
[1758151900010,0.35,245.0,244.95,1.71900563]
[1758151900230,26.46837995,245.02,244.97,1.68900563]
[1758151900231,17.73692368,245.02,244.97,1.68900563]
[1758151900537,18.08692368,245.02,244.97,33.98900563]
[1758151900714,13.94559401,245.01,244.97,32.3]
[1758151901029,13.59559401,245.01,244.97,32.3]
[1758151901429,13.94559401,245.01,244.97,32.3]
[1758151901625,0.35,245.0,244.97,32.3]
[1758151902034,0.35,244.99,244.95,0.03]
[1758151902209,0.35,244.99,244.96,32.3]
[1758151903023,13.59559401,245.0,244.96,32.3]
[1758151903341,13.59559401,245.0,244.96,33.98900563]
[1758151903715,13.59559401,245.0,244.96,34.93962691]
[1758151903920,0.06,245.02,244.96,34.93962691]
[1758151904449,0.06,245.02,244.96,32.3]
[1758151904615,13.65559401,245.02,244.97,2.63962691]
[1758151904816,0.06,245.02,245.01,2.63962691]
[1758151905019,0.06,245.02,245.01,34.93962691]
[1758151905244,0.06,245.02,245.01,35.62962691]
[1758151905973,0.06,245.02,245.01,34.93962691]
[1758151907118,0.06,245.02,245.01,32.3]
[1758151907318,0.06,245.02,245.01,32.28]
[1758151907932,0.06,245.02,245.01,35.60962691]
[1758151909118,0.06,245.02,245.01,39.69109297]
[1758151911145,0.06,245.02,245.01,2.63962691]
[1758151911321,0.06,245.02,245.01,32.28]
[1758151911524,0.06,245.02,245.01,2.63962691]
[1758151911826,0.06,245.02,244.96,0.03]
[1758151912044,16.58522092,245.01,244.97,32.28]
[1758151912726,20.66670487,245.01,244.97,32.28]
[1758151912944,16.23522092,244.99,244.98,32.28]
[1758151914150,16.58522092,244.99,244.97,32.28]
[1758151914733,7.07159278,244.98,244.96,32.31]
[1758151914935,2.63962691,244.97,244.96,32.31]
[1758151915729,10.45135067,244.97,244.96,0.03]
[1758151915933,10.80135067,244.97,244.96,0.03]
[1758151917030,39.59559401,244.97,244.96,0.03]
[1758151917262,13.59559401,244.97,244.96,0.03]
[1758151917463,13.59559401,244.97,244.96,32.31]
[1758151918150,13.59559401,244.97,244.96,0.03]
[1758151918350,13.59559401,244.97,244.96,32.31]
[1758151919252,13.59559401,244.97,244.96,33.02]
[1758151919757,13.59559401,244.97,244.96,39.38921817]
[1758151920159,13.59559401,244.97,244.96,33.02]
[1758151920357,13.59559401,244.97,244.96,0.03]
[1758151920658,13.59559401,244.97,244.96,32.31]
[1758151921060,0.06,245.02,244.96,39.38921817]
[1758151921253,0.06,245.02,245.01,6.36921817]
[1758151921448,0.06,245.02,245.01,38.64921817]
[1758151921649,0.06,245.02,245.01,39.35921817]
[1758151921863,0.06,245.02,245.01,43.44068423]
[1758151922376,13.65559401,245.02,245.01,32.28]
[1758151922581,17.73690388,245.02,244.97,0.71]
[1758151922780,13.65559401,245.02,244.98,39.32921817]
[1758151922962,0.06,245.02,244.99,7.04921817]
[1758151923155,0.06,245.02,245.0,7.04921817]
[1758151923662,0.06,245.02,245.01,32.96]
[1758151923963,0.06,245.02,245.01,32.28]
[1758151924477,13.65559401,245.02,244.96,0.03]
[1758151924659,13.65559401,245.02,244.97,38.64921817]
[1758151924863,24.10617787,245.02,244.96,0.71]
[1758151925082,13.59559401,245.0,244.97,32.28]
[1758151926758,13.59559401,244.97,244.96,0.03]
[1758151926967,45.96481218,244.97,244.96,0.03]
[1758151927269,13.59559401,244.97,244.96,0.71]
[1758151927674,13.59559401,244.97,244.96,0.03]
[1758151928383,13.59559401,244.97,244.96,32.29]
[1758151928569,13.65559401,245.02,244.96,39.33921817]
[1758151928754,13.65559401,245.02,244.97,6.36921817]
[1758151928951,13.65559401,245.02,244.99,6.36921817]
[1758151929156,13.65559401,245.02,244.99,7.04921817]
[1758151929565,13.65559401,245.02,244.99,0.68]
[1758151929769,13.65559401,245.02,244.99,7.04921817]
[1758151930171,17.73690825,245.02,244.97,6.36921817]
[1758151930484,13.65559401,245.02,244.99,32.26]
[1758151930676,13.65559401,245.02,244.99,38.62921817]
[1758151931373,13.65559401,245.02,244.99,32.26]
[1758151931573,0.06,245.02,244.99,38.62921817]
[1758151932370,10.5106111,245.02,244.99,32.26]
[1758151932778,10.5106111,245.02,244.97,32.26]
[1758151933082,6.42921817,245.02,244.97,32.94]
[1758151933466,0.06,245.02,244.98,0.68]
[1758151933665,0.06,245.02,244.99,6.36921817]
[1758151933995,0.06,245.02,245.0,0.68]
[1758151934867,0.06,245.02,244.98,4.08193777]
[1758151935258,0.06,245.02,244.99,0.68]
[1758151935459,0.06,245.02,244.99,7.04921817]
[1758151935675,0.06,245.02,245.0,0.68]
[1758151936255,0.06,245.02,244.98,4.08193777]
[1758151936574,0.06,245.02,244.99,32.94]
[1758151936774,0.06,245.02,244.99,0.68]
[1758151937081,0.06,245.02,245.0,32.26]
[1758151938781,0.06,245.02,244.99,32.26]
[1758151939781,0.06,245.02,244.99,32.94]
[1758151940761,13.59559401,244.99,244.98,32.26]
[1758151940984,16.23511426,244.99,244.96,0.03]
[1758151941186,2.63952025,244.97,244.96,0.03]
[1758151941485,16.23511426,244.97,244.96,0.03]
[1758151941782,20.31724676,244.97,244.96,0.03]
[1758151941984,20.66724676,244.97,244.96,0.03]
[1758151942872,21.07562671,244.97,244.96,0.03]
[1758151943267,21.35994985,244.97,244.96,0.03]
[1758151944876,13.87991715,244.96,244.95,0.03]
[1758151945080,16.5194374,244.96,244.95,0.03]
[1758151945282,16.8694374,244.96,244.95,0.03]
[1758151947485,20.95173655,244.96,244.95,0.03]
[1758151948702,20.60173655,244.96,244.95,0.03]
[1758151948895,46.45957498,244.96,244.95,0.03]
[1758151949096,20.31741341,244.96,244.95,0.03]
[1758151949292,17.67789316,244.96,244.95,0.71]
[1758151949489,18.08627311,244.96,244.95,0.71]
[1758151949794,17.67789316,244.96,244.95,0.71]
[1758151949994,13.59559401,244.97,244.95,0.71]
[1758151950189,13.59559401,244.97,244.96,0.68]
[1758151951096,14.00397396,244.99,244.96,0.68]
[1758151951295,13.59559401,244.99,244.96,0.68]
[1758151951498,16.23511426,244.99,244.95,0.03]
[1758151951680,13.59559401,244.97,244.95,0.03]
[1758151951875,17.67775298,244.97,244.95,0.03]
[1758151952093,13.59559401,244.97,244.96,0.68]
[1758151952281,2.63952025,244.98,244.96,0.68]
[1758151952282,13.59559401,244.98,244.96,0.68]
[1758151952481,18.08592459,244.99,244.97,0.68]
[1758151952796,13.59559401,244.98,244.96,2.63952025]
[1758151953100,13.59559401,245.01,244.96,2.63952025]
[1758151953274,13.59559401,245.01,244.97,0.71]
[1758151953595,13.59559401,245.01,244.98,0.71]
[1758151953779,13.59559401,245.01,244.99,0.71]
[1758151953974,17.67707605,245.01,244.95,6.75192649]
[1758151954174,17.67707605,245.01,244.96,0.71]
[1758151954382,20.3165963,245.01,244.97,0.71]
[1758151954583,20.3165963,245.01,244.98,0.71]
[1758151954784,20.3165963,245.01,244.99,0.71]
[1758151954979,17.67707605,245.01,244.99,0.71]
[1758151955182,13.59559401,245.01,244.96,2.63952025]
[1758151955385,13.65559401,245.02,245.0,0.71]
[1758151955582,0.06,245.02,245.01,0.71]
[1758151960382,0.06,245.02,244.99,0.71]
[1758151960582,0.06,245.02,245.01,0.71]
[1758151963879,0.06,245.02,244.98,2.63952025]
[1758151963880,4.14132623,245.02,244.98,0.71]
[1758151964211,0.06,245.02,244.99,0.71]
[1758151964599,0.06,245.02,244.99,3.34952025]
[1758151964916,0.06,245.02,244.96,0.03]
[1758151965205,4.5497376,245.02,244.96,3.37952025]
[1758151965380,16.23511426,245.0,244.96,0.74]
[1758151965583,13.59559401,245.0,244.97,0.71]
[1758151965983,13.59559401,245.01,244.96,1.71966184]
[1758151966188,13.59559401,245.01,244.98,0.71]
[1758151966387,17.67717899,245.01,244.98,0.71]
[1758151966978,17.67717899,245.01,244.97,1.68966184]
[1758151967184,17.67717899,245.01,244.96,0.03]
[1758151967185,13.59559401,244.98,244.96,0.03]
[1758151967402,15.28525585,244.98,244.96,0.03]
[1758151967903,15.28525585,244.99,244.96,0.03]
[1758151968597,4.08196587,244.98,244.96,0.03]
[1758151969800,5.77162771,244.98,244.96,0.03]
[1758151970416,4.08196587,244.98,244.96,0.74]
[1758151971301,13.59559401,244.99,244.97,0.71]
[1758151971611,26.0,244.97,244.96,0.03]
[1758151971902,39.87991715,245.01,244.97,0.71]
[1758151972100,39.59559401,244.99,244.98,0.71]
[1758151973093,13.59559401,244.99,244.98,2.39966184]
[1758151973700,13.59559401,244.99,244.98,6.48162771]
[1758151973900,0.06,245.02,244.98,6.48162771]
[1758151974104,0.06,245.02,245.01,1.68966184]
[1758151974598,0.06,245.02,245.01,2.39966184]
[1758151974907,0.06,245.02,245.01,6.4811279]
[1758151977196,0.06,245.02,245.01,0.71]
[1758151977998,0.06,245.02,245.01,2.39966184]
[1758151978295,0.06,245.02,245.01,6.4811279]
[1758151979097,0.06,245.02,245.01,4.79146606]
[1758151979413,0.06,245.02,245.01,2.39966184]
[1758151981318,0.06,245.02,245.01,6.4811279]
[1758151981825,0.06,245.02,244.97,0.71]
[1758151982029,15.28525585,245.01,244.96,0.03]
[1758151982193,13.59559401,244.99,244.97,32.2]
[1758151982821,15.28525585,244.99,244.97,32.2]
[1758151984018,4.08148182,245.01,244.97,32.2]
[1758151984202,1.68966184,244.99,244.97,32.2]
[1758151984396,13.59559401,244.99,244.97,32.2]
[1758151985331,0.06,245.02,244.97,32.2]
[1758151985332,0.06,245.02,244.98,2.34966184]
[1758151985515,0.06,245.02,245.0,1.68966184]
[1758151985701,0.06,245.02,244.97,36.28211365]
[1758151985702,0.06,245.02,245.01,1.68966184]
[1758151986101,0.06,245.02,245.01,2.34966184]
[1758151986301,0.06,245.02,245.01,34.54966184]
[1758151986519,0.06,245.02,245.01,2.34966184]
[1758151986819,0.06,245.02,245.01,34.54966184]
[1758151988124,0.06,245.02,245.01,38.6311279]
[1758151989604,0.06,245.04,245.01,48.83479305]
[1758151989901,0.06,245.06,245.03,1.68966184]
[1758151990102,0.06,245.06,245.04,1.68966184]
[1758151990699,0.06,245.06,245.04,2.34966184]
[1758151991709,0.06,245.06,245.04,34.52966184]
[1758151992006,0.06,245.06,245.04,32.18]
[1758151992211,0.06,245.06,245.04,34.52966184]
[1758151992414,0.06,245.06,245.04,2.34966184]
[1758151992620,0.06,245.06,245.04,34.52966184]
[1758151995019,0.06,245.06,245.04,0.66]
[1758151995214,0.06,245.06,245.0,1.68966184]
[1758151995409,13.65559401,245.05,245.01,32.18]
[1758151995816,13.65559401,245.05,245.01,32.84]
[1758151996531,0.06,245.05,245.02,32.84]
[1758151996828,0.06,245.05,245.02,32.18]
[1758151997032,0.06,245.05,245.03,0.66]
[1758151997531,0.06,245.05,245.02,33.86966184]
[1758151998336,0.06,245.05,245.02,32.84]
[1758151999218,13.65559401,245.05,245.02,32.18]
[1758151999418,13.65559401,245.05,245.02,32.84]
[1758151999816,0.06,245.05,245.02,32.84]
[1758152001333,0.06,245.05,245.02,32.18]
[1758152001526,0.06,245.05,245.02,32.84]
[1758152001727,0.06,245.05,245.02,0.66]
[1758152001940,0.06,245.05,245.03,32.16]
[1758152002821,0.06,245.05,245.02,0.66]
[1758152003010,0.06,245.05,245.03,32.16]
[1758152003320,0.06,245.05,245.03,32.82]
[1758152004122,0.06,245.05,245.03,32.16]
[1758152004317,13.65559401,245.05,245.03,32.16]
[1758152004830,0.06,245.05,245.03,32.82]
[1758152006646,0.06,245.05,245.03,32.16]
[1758152006824,0.06,245.05,245.04,0.66]
[1758152007419,0.06,245.05,245.04,32.82]
[1758152007824,13.65559401,245.05,245.03,32.16]
[1758152011536,17.73642377,245.05,245.03,32.16]
[1758152011730,17.73642377,245.05,245.04,32.16]
[1758152012135,17.73642377,245.05,245.01,0.03]
[1758152012319,17.73642377,245.05,245.02,32.16]
[1758152012935,13.65559401,245.05,245.02,32.16]
[1758152013219,13.65559401,245.05,245.02,32.85]
[1758152014047,0.06,245.05,245.03,0.69]
[1758152014217,0.06,245.05,245.03,4.77107704]
[1758152014733,0.06,245.05,245.04,0.69]
[1758152015534,0.06,245.05,245.04,4.77096637]
[1758152016735,0.06,245.05,245.04,0.69]
[1758152016938,0.06,245.05,245.04,32.14]
[1758152017139,0.06,245.05,245.02,0.69]
[1758152017452,13.59559401,245.04,245.01,0.03]
[1758152017638,13.59559401,245.04,245.02,32.14]
[1758152018823,17.67660018,245.04,245.02,32.14]
[1758152019249,0.06,245.05,245.03,0.69]
[1758152022063,13.65559401,245.05,245.03,0.69]
[1758152022259,17.73640221,245.05,245.02,32.14]
[1758152024647,17.73640221,245.05,245.03,32.14]
[1758152025064,17.73640221,245.05,245.01,0.03]
[1758152025231,17.73640221,245.05,245.03,32.14]
[1758152025232,1.68966184,245.04,245.03,32.14]
[1758152025552,13.59559401,245.04,245.03,32.14]
[1758152025750,16.2352359,245.04,245.03,32.14]
[1758152026451,13.59559401,245.04,245.03,32.14]
[1758152026835,13.59559401,245.04,245.01,0.03]
[1758152026836,13.59559401,245.03,245.01,0.03]
[1758152027044,13.59559401,245.04,245.02,32.14]
[1758152027451,13.59559401,245.04,245.01,0.03]
[1758152027643,13.59559401,245.04,245.02,32.12]
[1758152028755,0.06,245.05,245.03,0.69]
[1758152030234,0.06,245.05,245.04,0.69]
[1758152030852,0.06,245.05,245.04,32.81]
[1758152031056,0.06,245.05,245.04,36.89096637]
[1758152031750,0.06,245.05,245.04,39.53060826]
[1758152032137,0.06,245.05,245.04,7.41060826]
[1758152032334,0.06,245.05,245.04,39.53060826]
[1758152033141,0.06,245.05,245.04,32.81]
[1758152033752,0.06,245.05,245.04,36.89096637]
[1758152033950,0.06,245.05,245.04,4.77096637]
[1758152034149,0.06,245.05,245.04,39.53060826]
[1758152034765,0.06,245.05,245.04,36.89096637]
[1758152034946,0.06,245.05,245.04,39.53060826]
[1758152036449,0.06,245.05,245.04,35.44964189]
[1758152036954,0.06,245.05,245.04,3.32964189]
[1758152037338,0.06,245.05,245.04,35.44964189]
[1758152037741,0.06,245.05,245.04,32.81]
[1758152038140,0.06,245.05,245.04,0.69]
[1758152038662,0.06,245.05,245.04,32.79]
[1758152039573,0.06,245.05,245.04,32.1]
[1758152039938,0.06,245.05,245.04,32.8]
[1758152040142,0.06,245.05,245.04,35.43964189]
[1758152041549,0.06,245.05,245.04,39.52060826]
[1758152043440,0.06,245.05,245.04,35.43964189]
[1758152043646,0.06,245.05,245.04,0.7]
[1758152043858,0.06,245.05,245.04,35.43964189]
[1758152044060,0.06,245.05,245.04,39.52060826]
[1758152045650,0.06,245.05,245.04,4.78096637]
[1758152045855,0.06,245.05,245.04,39.92870489]
[1758152046053,0.06,245.05,245.04,42.16025015]
[1758152046850,1e-08,245.05,245.04,42.16025015]
[1758152047169,1e-08,245.05,245.04,43.79340315]
[1758152047359,1e-08,245.05,245.04,6.41411937]
[1758152047669,1e-08,245.05,245.04,39.52060826]
[1758152048177,1e-08,245.05,245.04,42.56834678]
[1758152049152,1e-08,245.06,245.04,42.85266992]
[1758152049481,1e-08,245.06,245.05,3.61396503]
[1758152049860,1e-08,245.06,245.05,33.69476486]
[1758152050065,13.59559401,245.22,245.08,26.0]
[1758152050372,14.06559401,245.22,245.09,34.71964189]
[1758152050560,14.06559401,245.22,245.09,35.40964189]
[1758152050875,13.59559401,245.2,245.09,35.40964189]
[1758152051861,13.59559401,245.2,245.09,39.48977571]
[1758152052054,0.47,245.2,245.09,39.48977571]
[1758152053581,0.47,245.19,245.09,7.40977571]
[1758152053780,13.59559401,245.18,245.09,39.48977571]
[1758152054692,13.59559401,245.18,245.09,118.38977571]
[1758152054987,13.59559401,245.18,245.09,86.30977571]
[1758152055194,13.59559401,245.18,245.09,118.38977571]
[1758152056173,13.59559401,245.17,245.09,83.67013382]
[1758152056481,14.06559401,245.14,245.09,34.69964189]
[1758152056680,14.06559401,245.14,245.08,26.0]
[1758152056681,13.59559401,245.09,245.07,12.24664748]
[1758152056987,0.06,245.1,245.08,32.06]
[1758152057180,13.65559401,245.1,245.07,6.72010558]
[1758152057376,13.65559401,245.1,245.08,32.06]
[1758152057578,0.06,245.1,245.07,6.72010558]
[1758152057772,0.06,245.1,245.08,34.69964189]
[1758152058173,0.06,245.1,245.08,2.63964189]
[1758152058373,0.06,245.1,245.09,32.06]
[1758152058986,0.06,245.1,245.09,38.77977571]
[1758152062569,0.06,245.1,245.09,39.46977571]
[1758152064091,0.06,245.1,245.09,7.40977571]
[1758152064394,0.06,245.1,245.09,39.46977571]
[1758152064600,0.06,245.1,245.09,36.83013382]
[1758152064794,0.06,245.1,245.09,39.46977571]
[1758152065186,0.06,245.1,245.09,36.86013382]
[1758152065389,0.06,245.1,245.09,39.49977571]
[1758152065703,0.06,245.1,245.09,6.74977571]
[1758152066000,0.06,245.1,245.09,36.17013382]
[1758152066181,0.06,245.1,245.09,38.80977571]
[1758152066384,0.06,245.1,245.09,39.49977571]
[1758152066794,0.06,245.1,245.09,38.80977571]
[1758152067505,0.06,245.1,245.09,39.49977571]
[1758152068374,0.06,245.13,245.09,39.49977571]
[1758152068579,0.06,245.13,245.12,2.63964189]
[1758152068784,0.06,245.13,245.12,34.67964189]
[1758152069109,0.06,245.13,245.12,35.36964189]
[1758152069405,0.06,245.13,245.12,7.40927635]
[1758152069588,0.06,245.13,245.12,39.44927635]
[1758152070703,0.06,245.13,245.12,4.76963446]
[1758152070883,0.06,245.13,245.12,34.67964189]
[1758152071073,0.06,245.13,245.12,32.04]
[1758152071279,0.59,245.13,245.12,32.04]
[1758152071478,0.06,245.13,245.12,32.04]
[1758152071900,13.59559401,245.12,245.09,2.66964189]
[1758152072087,0.53,245.12,245.1,32.04]
[1758152072811,0.06,245.13,245.1,32.04]
[1758152073412,0.06,245.13,245.1,39.42956776]
[1758152073790,0.06,245.13,245.1,34.67964189]
[1758152074798,13.59559401,245.12,245.1,32.04]
[1758152075510,0.06,245.13,245.11,2.63964189]
[1758152075705,0.06,245.13,245.12,32.04]
[1758152077015,0.06,245.13,245.12,32.71]
[1758152077192,0.06,245.13,245.12,35.34964189]
[1758152077393,0.06,245.13,245.12,39.42927635]
[1758152078098,0.06,245.13,245.12,39.40927635]
[1758152079608,0.06,245.13,245.12,32.02]
[1758152080210,0.06,245.13,245.1,2.63964189]
[1758152080515,0.06,245.13,245.1,6.71959886]
[1758152080696,13.59559401,245.12,245.11,32.02]
[1758152081818,0.06,245.13,245.11,32.02]
[1758152082518,0.06,245.13,245.11,32.69]
[1758152083116,0.06,245.13,245.11,36.76979604]
[1758152083900,0.06,245.13,245.11,32.02]
[1758152084098,13.59559401,245.11,245.1,0.03]
[1758152084401,14.12559401,245.11,245.1,32.05]
[1758152084595,18.20539491,245.11,245.1,32.05]
[1758152085889,18.898098,245.11,245.1,0.03]
[1758152086095,18.898098,245.11,245.1,32.05]
[1758152086290,18.898098,245.11,245.1,0.03]
[1758152088018,20.58652088,245.11,245.1,0.03]
[1758152088218,20.17814093,245.11,245.1,0.03]
[1758152091505,46.17814093,245.11,245.1,0.03]
[1758152093702,20.17814093,245.11,245.1,0.03]
[1758152095420,18.48971805,245.11,245.1,0.03]
[1758152095635,19.64814093,245.11,245.1,0.03]
[1758152097703,43.95971805,245.11,245.1,0.03]
[1758152097907,19.64814093,245.11,245.1,0.03]
[1758152098103,17.95971805,245.11,245.1,0.03]
[1758152098310,43.95971805,245.11,245.1,0.03]
[1758152098504,44.368098,245.11,245.1,0.03]
[1758152098706,44.898098,245.11,245.1,0.03]
[1758152099206,44.368098,245.11,245.1,0.03]
[1758152100503,0.34432314,245.13,245.1,0.7]
[1758152100830,13.59559401,245.12,245.11,0.67]
[1758152101724,0.06,245.13,245.11,2.35842288]
[1758152101927,0.06,245.13,245.12,0.67]
[1758152103631,0.06,245.13,245.12,2.35842288]
[1758152103822,0.06,245.13,245.12,32.67]
[1758152104128,0.06,245.13,245.12,34.35842288]
[1758152105028,17.73508705,245.13,245.1,32.03]
[1758152105236,13.59559401,245.11,245.1,0.03]
[1758152105423,14.00397396,245.11,245.1,0.03]
[1758152106123,14.2882971,245.11,245.1,0.03]